bitfinex-derivatives/quotes_SOLF0:USTF0_20250228
["timestamp","ask_amount","ask_price","bid_price","bid_amount"]
[1740722921195,0.06000736,127.36,127.35,7.8608]
[1740722921504,7.36e-06,127.36,127.35,7.8608]
[1740722921797,7.36e-06,127.36,127.35,11.7808]
[1740722922198,77.08996744,129.09,127.35,11.7808]
[1740722922199,15.6832,127.67,127.35,18.5]
[1740722922400,8.2837,127.58,127.35,14.58]
[1740722922603,3.8878,127.57,127.35,14.58]
[1740722922906,14.7,127.56,127.35,14.58]
[1740722923297,14.7,127.56,127.36,15.7201]
[1740722923498,0.05676347,127.47,127.44,0.05146085]
[1740722923802,0.05676347,127.47,127.46,7.854]
[1740722924001,14.7,127.56,127.42,213.46]
[1740722924203,6.82e-06,127.48,127.45,0.05129388]
[1740722924403,6.82e-06,127.48,127.47,7.8534]
[1740722924709,14.7,127.56,127.42,213.46]
[1740722924903,22.5479,127.56,127.42,213.46]
[1740722925100,3.8878,127.57,127.42,213.46]
[1740722925506,0.05444579,127.51,127.48,0.05847134]
[1740722925900,7.8496,127.54,127.47,7.853]
[1740722926101,0.05929244,127.51,127.48,0.05288343]
[1740722926506,14.73929244,127.51,127.48,0.05288343]
[1740722926706,4.0628,127.5,127.48,0.05288343]
[1740722926906,14.73929244,127.51,127.48,0.05288343]
[1740722927612,14.73929244,127.51,127.48,7.90548343]
[1740722927812,0.05929244,127.51,127.48,0.05288343]
[1740722928414,0.05929244,127.51,127.5,7.8516]
[1740722929310,0.05929244,127.51,127.48,0.05288343]
[1740722930511,0.05929244,127.51,127.49,7.8521]
[1740722930706,0.05929244,127.51,127.48,0.05288343]
[1740722931012,0.05929244,127.51,127.5,7.8516]
[1740722931913,0.05929244,127.51,127.48,7.90558343]
[1740722932303,0.05929244,127.51,127.48,0.05288343]
[1740722933116,0.05929244,127.51,127.49,108.149053]
[1740722933117,6.1955331,127.5,127.49,108.149053]
[1740722934412,6.1955331,127.5,127.49,23.31523485]
[1740722934915,6.1955331,127.5,127.48,119.85955386]
[1740722935116,0.05929244,127.51,127.48,119.85955386]
[1740722935514,0.05929244,127.51,127.48,127.71225386]
[1740722935923,0.05929244,127.51,127.48,119.85955386]
[1740722937321,0.05929244,127.51,127.48,0.05288343]
[1740722937619,0.05929244,127.51,127.47,84.83381815]
[1740722938119,7.8525,127.49,127.47,84.83381815]
[1740722938318,0.05929244,127.51,127.47,84.83381815]
[1740722938721,7.8528,127.48,127.47,84.83381815]
[1740722940321,18.5297,127.5,127.46,0.05917811]
[1740722940721,4.1077394,127.49,127.46,0.05917811]
[1740722940911,7.854,127.47,127.45,84.83381815]
[1740722941116,4.1077394,127.49,127.45,84.83381815]
[1740722941720,11.9602394,127.49,127.45,84.83381815]
[1740722942117,4.1077394,127.49,127.44,7.8547]
[1740722942318,4.1077394,127.49,127.38,84.83381815]
[1740722942520,4.0553,127.49,127.38,84.83381815]
[1740722942722,0.059039,127.45,127.38,84.83381815]
[1740722943118,14.54,127.5,127.38,84.83381815]
[1740722943323,7.8516,127.5,127.46,7.8538]
[1740722943522,37.92,127.55,127.38,84.83381815]
[1740722943827,7.8581,127.4,127.38,84.83381815]
[1740722944024,14.52,127.45,127.38,84.83381815]
[1740722944526,0.05909439,127.43,127.4,9.002e-05]
[1740722945227,6.10451718,127.42,127.4,9.002e-05]
[1740722945524,6.10451718,127.41,127.4,9.002e-05]
[1740722945918,6.10451718,127.41,127.4,11.77779002]
[1740722946121,0.05909439,127.43,127.4,3.92009002]
[1740722946323,0.05909439,127.43,127.4,9.002e-05]
[1740722946525,0.05909439,127.43,127.41,7.8571]
[1740722947224,0.05909439,127.43,127.4,9.002e-05]
[1740722947924,7.91509439,127.43,127.4,9.002e-05]
[1740722948124,0.05909439,127.43,127.4,9.002e-05]
[1740722949219,7.857,127.42,127.4,9.002e-05]
[1740722949824,0.05909439,127.43,127.4,9.002e-05]
[1740722955528,7.8569,127.42,127.4,9.002e-05]
[1740722955832,0.05909439,127.43,127.4,9.002e-05]
[1740722956235,7.8571,127.41,127.4,9.002e-05]
[1740722956933,11.8345,127.41,127.4,9.002e-05]
[1740722957631,15.7545,127.41,127.4,9.002e-05]
[1740722958129,15.7545,127.41,127.3,84.83381815]
[1740722958130,7.8633,127.31,127.3,84.83381815]
[1740722958433,7.8633,127.31,127.3,72.28681815]
[1740722958631,14.54,127.36,127.3,66.01331815]
[1740722958829,3.7818,127.35,127.3,66.01331815]
[1740722959036,3.7818,127.4,127.3,66.01331815]
[1740722959335,0.05973368,127.36,127.3,66.01331815]
[1740722960533,0.05973368,127.36,127.31,7.8633]
[1740722960732,0.05973368,127.36,127.3,66.01331815]
[1740722960925,0.05973368,127.36,127.31,7.8632]
[1740722961128,0.05973368,127.36,127.3,66.01331815]
[1740722961827,0.05973368,127.36,127.3,73.87681815]
[1740722962033,0.05973368,127.36,127.3,66.01331815]
[1740722963734,4.13523368,127.36,127.3,66.01331815]
[1740722964332,4.13523368,127.36,127.3,59.74071815]
[1740722964538,4.13523368,127.36,127.3,51.65621815]
[1740722966135,0.05973368,127.36,127.3,51.65621815]
[1740722966934,0.05973368,127.36,127.34,7.8614]
[1740722967336,0.05973368,127.36,127.3,51.65621815]
[1740722969741,245.91596963,127.5,127.3,51.65621815]
[1740722969942,7.8569,127.42,127.3,51.65621815]
[1740722970441,8.3248,127.44,127.3,51.65621815]
[1740722971039,7.8596,127.37,127.36,0.05692456]
[1740722971238,7.8596,127.37,127.3,51.65621815]
[1740722971442,0.05449351,127.38,127.35,0.05443298]
[1740722971638,14.54,127.39,127.3,51.65621815]
[1740722971837,0.05895312,127.38,127.35,0.05510988]
[1740722976639,7.8602,127.36,127.35,9.88e-06]
[1740722977547,11.7802,127.36,127.35,9.88e-06]
[1740722977745,15.6174,127.36,127.35,9.88e-06]
[1740722979454,7.8633,127.31,127.3,51.65621815]
[1740722979638,22.4033,127.31,127.3,51.65621815]
[1740722979845,22.4033,127.31,127.3,14.29561815]
[1740722980045,26.3233,127.31,127.3,1.815e-05]
[1740722980446,14.54,127.31,127.3,1.815e-05]
[1740722980646,18.46,127.31,127.3,1.815e-05]
[1740722980848,26.3233,127.31,127.3,1.815e-05]
[1740722981651,7.8645,127.29,127.28,75.76074538]
[1740722982045,11.7845,127.29,127.28,75.76074538]
[1740722982746,3.92,127.29,127.28,75.76074538]
[1740722983151,14.54,127.31,127.28,75.76074538]
[1740722983349,7.8645,127.3,127.28,75.76074538]
[1740722983755,14.54,127.31,127.28,75.76074538]
[1740722985064,14.54,127.31,127.28,83.62574538]
[1740722985260,14.54,127.31,127.28,75.76074538]
[1740722986261,22.4034,127.31,127.28,75.76074538]
[1740722987162,7.864,127.3,127.28,75.76074538]
[1740722987368,14.54,127.31,127.28,75.76074538]
[1740722987761,7.8645,127.29,127.28,75.76074538]
[1740722988961,11.7845,127.29,127.28,75.76074538]
[1740722990863,7.8645,127.29,127.28,75.76074538]
[1740722991465,11.7845,127.29,127.28,75.76074538]
[1740722991870,11.7845,127.29,127.28,44.22724538]
[1740722992065,11.7845,127.29,127.28,27.11074538]
[1740722992571,3.92,127.29,127.28,27.11074538]
[1740722993170,14.54,127.31,127.28,27.11074538]
[1740722993366,14.56,127.3,127.28,27.11074538]
[1740722996165,0.05888014,127.32,127.28,27.11074538]
[1740722996371,14.61888014,127.32,127.28,27.11074538]
[1740722997969,14.61888014,127.32,127.29,4.051]
[1740722998869,10.82649731,127.37,127.29,4.051]
[1740722999063,14.56,127.36,127.29,4.051]
[1740722999264,10.82649731,127.37,127.29,4.051]
[1740722999661,14.56,127.38,127.29,4.051]
[1740722999871,0.05076909,127.35,127.32,7.91551446]
[1740723000068,14.56,127.38,127.32,0.05321446]
[1740723000770,14.54,127.38,127.32,0.05321446]
[1740723000975,10.82649731,127.41,127.32,0.05321446]
[1740723001276,0.05686886,127.36,127.29,4.051]
[1740723001474,14.54,127.4,127.29,4.051]
[1740723002371,10.82649731,127.41,127.29,4.051]
[1740723002575,4.55139731,127.41,127.33,0.05012369]
[1740723002777,0.05111493,127.36,127.29,4.051]
[1740723002974,4.55139731,127.41,127.36,0.04982068]
[1740723003169,182.23157551,127.42,127.29,4.051]
[1740723003170,175.95847551,127.42,127.29,4.051]
[1740723003375,169.68167551,127.42,127.32,213.82]
[1740723003577,14.54,127.43,127.32,213.82]
[1740723003870,18.29576963,127.47,127.32,213.82]
[1740723004077,0.05980288,127.39,127.36,0.05636566]
[1740723004377,32.83576963,127.47,127.32,217.74]
[1740723004574,32.83576963,127.47,127.32,213.82]
[1740723004773,18.29576963,127.47,127.32,213.82]
[1740723005469,0.05779587,127.41,127.38,0.05823685]
[1740723005670,18.29576963,127.47,127.32,213.82]
[1740723005874,0.0576296,127.41,127.38,0.05602474]
[1740723006070,18.29576963,127.47,127.38,3.92]
[1740723006272,18.29576963,127.47,127.44,7.8547]
[1740723006767,18.29576963,127.47,127.44,7.855]
[1740723006768,12.02706963,127.47,127.44,7.855]
[1740723006970,14.54,127.5,127.32,237.41]
[1740723007172,0.0580275,127.41,127.38,0.05111062]
[1740723007369,14.54,127.5,127.33,1.57072174]
[1740723008176,14.54,127.5,127.34,1.43498588]
[1740723008372,14.54,127.5,127.44,7.8548]
[1740723008774,0.05217728,127.48,127.37,14.54]
[1740723008979,101.37415898,127.57,127.46,0.05012974]
[1740723009178,86.83415898,127.57,127.43,213.68]
[1740723009477,86.83415898,127.57,127.44,14.54]
[1740723010076,0.05069942,127.52,127.51,7.8509]
[1740723010275,86.83415898,127.57,127.44,213.46]
[1740723010481,86.83415898,127.62,127.44,14.54]
[1740723010981,86.83415898,127.62,127.45,1.43104834]
[1740723011482,0.05782067,127.55,127.52,0.05424567]
[1740723011679,86.83415898,127.62,127.54,7.8491]
[1740723011879,86.83415898,127.62,127.46,196.56911972]
[1740723012078,86.83415898,127.62,127.47,1.4303368]
[1740723013082,86.83415898,127.62,127.53,0.05703617]
[1740723013281,86.83415898,127.62,127.61,7.8448]
[1740723013484,76.17925898,127.62,127.61,7.8448]
[1740723013674,64.29955898,127.62,127.61,11.7648]
[1740723014184,0.05824374,127.63,127.6,0.05312852]
[1740723014478,64.29955898,127.78,127.54,228.1]
[1740723014479,87.88955898,127.78,127.54,228.1]
[1740723014677,0.05921041,127.63,127.6,0.05321073]
[1740723014874,64.29955898,127.78,127.54,228.1]
[1740723015181,64.29955898,127.78,127.6,0.04981597]
[1740723015378,0.05392706,127.64,127.55,196.42780683]
[1740723015578,64.29955898,127.78,127.65,0.05569383]
[1740723015774,64.29955898,127.78,127.54,228.1]
[1740723016083,7.8396,127.7,127.58,7.8465]
[1740723016286,0.0577097,127.64,127.62,0.05362792]
[1740723016583,3.9316,127.75,127.55,1.42733746]
[1740723016778,0.05732841,127.64,127.62,0.0515568]
[1740723016982,3.9237,127.77,127.62,0.0515568]
[1740723017185,64.29955898,127.78,127.61,14.52]
[1740723017786,64.29955898,127.78,127.62,1.42566587]
[1740723018084,0.05212921,127.71,127.7,7.8392]
[1740723018282,12.0464,127.84,127.69,213.38]
[1740723018483,7.9423,127.84,127.69,213.38]
[1740723018888,4.1372,127.84,127.69,213.38]
[1740723019089,7.8325,127.82,127.69,213.38]
[1740723019483,0.05428478,127.77,127.74,0.05684911]
[1740723019787,14.52,127.86,127.69,213.38]
[1740723019978,0.05407555,127.77,127.74,0.05778734]
[1740723020176,14.52,127.88,127.69,213.38]
[1740723020379,14.52,127.88,127.74,0.05565605]
[1740723020578,14.52,127.88,127.69,213.38]
[1740723020784,0.05428478,127.8,127.7,2.98969846]
[1740723020982,14.52,127.88,127.77,0.05706437]
[1740723021182,14.52,127.88,127.7,1.56617071]
[1740723021183,0.05048992,127.76,127.7,1.56617071]
[1740723021480,7.8308,127.84,127.74,7.8367]
[1740723021682,7.8308,127.84,127.72,0.04960792]
[1740723021986,0.05428478,127.8,127.77,0.05731823]
[1740723022188,7.9423,127.9,127.71,1.42301733]
[1740723022383,0.05245289,127.8,127.77,0.05845365]
[1740723022682,22.4423,127.9,127.71,1.42301733]
[1740723022683,7.9423,127.9,127.75,14.5]
[1740723022887,14.5,127.94,127.82,7.8314]
[1740723023188,7.8253,127.93,127.8,213.14]
[1740723023579,7.8253,127.93,127.83,7.8308]
[1740723023786,8.007,127.95,127.83,7.8308]
[1740723023984,8.007,127.95,127.87,0.05126485]
[1740723024186,26.59239567,127.94,127.71,213.14]
[1740723024387,7.8344,127.78,127.71,213.14]
[1740723024587,14.5,127.81,127.63,213.14]
[1740723024786,7.9086,127.8,127.64,1.42528563]
[1740723024985,7.9086,127.8,127.63,213.14]
[1740723025196,1.44055354,127.79,127.6,7.8454]
[1740723025383,0.05126485,127.73,127.55,227.64]
[1740723025587,14.5,127.72,127.56,1.42724696]
[1740723025789,3.8168,127.72,127.56,1.42724696]
[1740723025989,14.5,127.77,127.56,1.42724696]
[1740723026188,5.25791747,127.76,127.57,7.8466]
[1740723026389,1.44111747,127.75,127.55,227.64]
[1740723026595,0.05327929,127.68,127.65,0.05385593]
[1740723027088,7.8386,127.72,127.65,0.05583224]
[1740723027291,0.05491514,127.68,127.65,0.05583224]
[1740723027496,3.8168,127.76,127.56,1.42650522]
[1740723027693,6.479e-05,127.68,127.65,0.0543183]
[1740723027892,7.8836,127.83,127.7,7.8391]
[1740723028094,7.8836,127.83,127.66,213.14]
[1740723028500,3.8168,127.83,127.67,1.56653873]
[1740723028796,7.8306,127.85,127.68,1.42324401]
[1740723028993,7.8306,127.85,127.74,0.05159516]
[1740723029197,4.0668,127.88,127.72,14.5]
[1740723030202,4.0668,127.88,127.79,0.05014968]
[1740723030499,7.8282,127.88,127.73,1.42149477]
[1740723030689,22.4145,127.92,127.82,0.057897]
[1740723030892,7.9145,127.92,127.77,213.1]
[1740723031094,7.9145,127.92,127.86,0.05204309]
[1740723031299,7.9145,127.92,127.77,408.1]
[1740723031494,7.9145,127.92,127.88,0.05031816]
[1740723031695,7.827,127.91,127.83,7.8312]
[1740723031893,7.9145,127.92,127.89,0.05968482]
[1740723032093,4.0679,127.92,127.79,14.5]
[1740723032292,4.0679,127.92,127.89,0.05362503]
[1740723032498,4.0679,127.92,127.79,14.5]
[1740723032698,4.0679,127.92,127.89,0.05347554]
[1740723032904,11.9556,127.93,127.87,7.8288]
[1740723033097,11.9556,127.93,127.89,0.05096796]
[1740723033299,3.8466,127.95,127.89,0.05096796]
[1740723033795,11.6711,127.95,127.89,0.05096796]
[1740723033991,212.08454539,127.96,127.89,0.05096796]
[1740723035196,212.08454539,127.96,127.89,3.95096796]
[1740723035402,212.08454539,127.96,127.89,0.05096796]
[1740723035799,212.08454539,127.96,127.91,7.8263]
[1740723035994,212.08454539,127.96,127.89,0.05096796]
[1740723036191,212.08454539,127.96,127.88,213.02]
[1740723036396,212.08454539,127.96,127.91,0.05642137]
[1740723038300,215.98534539,127.96,127.91,0.05642137]
[1740723038503,3.8174,127.95,127.91,0.05642137]
[1740723038703,7.8258,127.92,127.91,0.05642137]
[1740723039000,3.8174,127.95,127.91,0.05642137]
[1740723040406,216.08904539,127.96,127.93,7.8252]
[1740723040599,216.08904539,127.96,127.91,0.05642137]
[1740723040797,216.08904539,127.96,127.93,7.8247]
[1740723040999,212.08454539,127.96,127.91,0.05642137]
[1740723041501,212.08454539,127.96,127.93,7.8247]
[1740723041703,212.08454539,127.96,127.91,0.05642137]
[1740723044306,212.08454539,127.96,127.93,7.8251]
[1740723044505,212.08454539,127.96,127.91,0.05642137]
[1740723044808,219.90814539,127.96,127.91,7.88232137]
[1740723045111,212.08454539,127.96,127.91,0.05642137]
[1740723045407,212.08454539,127.96,127.95,7.8239]
[1740723045799,212.08454539,127.96,127.94,0.05447244]
[1740723045996,212.08454539,127.96,127.88,213.02]
[1740723046201,212.13901783,127.96,127.88,213.02]
[1740723046403,212.08454539,127.96,127.88,213.02]
[1740723047199,0.05447244,127.93,127.91,0.05532006]
[1740723048909,185.62431783,127.96,127.91,3.95532006]
[1740723049108,117.6274738,127.96,127.95,7.8239]
[1740723049309,117.6274738,127.96,127.91,0.05532006]
[1740723049614,117.6274738,127.96,127.89,14.46]
[1740723049814,117.6274738,127.96,127.88,227.48]
[1740723050316,117.6274738,127.96,127.91,0.05330994]
[1740723050512,3.9228,127.95,127.91,0.05330994]
[1740723051314,117.6274738,127.96,127.91,0.05330994]
[1740723052616,117.6274738,127.96,127.88,213.02]
[1740723053919,0.05323845,127.93,127.91,0.05874876]
[1740723054916,0.05323845,127.93,127.91,3.95874876]
[1740723055219,0.05323845,127.93,127.92,7.8258]
[1740723055620,0.05323845,127.93,127.92,3.9]
[1740723055821,0.05323845,127.93,127.91,0.05874876]
[1740723056422,0.05323845,127.93,127.84,84.83381815]
[1740723056722,125.4511738,127.96,127.83,84.83381815]
[1740723056919,117.6274738,127.96,127.83,84.83381815]
[1740723057123,117.6274738,127.96,127.84,1.41003149]
[1740723057627,0.05069991,127.91,127.9,7.8266]
[1740723057927,7.8245,127.95,127.89,7.8275]
[1740723058126,0.05897631,127.92,127.83,1.56457795]
[1740723058523,117.6274738,127.96,127.83,1.56457795]
[1740723059027,7.8248,127.94,127.84,1.41037746]
[1740723059326,0.0530155,127.9,127.88,0.05119875]
[1740723059524,117.6274738,127.96,127.84,1.41037746]
[1740723059727,0.05030928,127.9,127.88,0.05577808]
[1740723059925,117.6274738,127.96,127.87,14.46]
[1740723060621,117.6274738,127.96,127.93,7.8252]
[1740723060817,117.6274738,127.96,127.87,14.46]
[1740723061022,0.05958227,127.93,127.9,0.05410595]
[1740723063320,0.05958227,127.93,127.9,7.88080595]
[1740723063526,0.05958227,127.93,127.9,0.05410595]
[1740723063926,0.00133849,127.93,127.9,0.05410595]
[1740723064628,0.00133849,127.93,127.91,7.8263]
[1740723065329,0.00133849,127.93,127.9,85.52346558]
[1740723065525,0.00133849,127.93,127.9,60.53726558]
[1740723066423,0.00133849,127.93,127.9,47.98626558]
[1740723066626,0.00133849,127.93,127.9,0.05260265]
[1740723066824,0.00133849,127.93,127.89,127.25072723]
[1740723066825,7.827,127.9,127.89,46.61309546]
[1740723067028,0.00133849,127.93,127.89,12.69389546]
[1740723067225,3.90133849,127.93,127.87,232.97191181]
[1740723067425,0.00133849,127.93,127.87,232.97191181]
[1740723068127,0.00133849,127.93,127.89,0.05275156]
[1740723070331,42.91299786,127.93,127.89,0.05275156]
[1740723071225,9.786e-05,127.93,127.89,3.95275156]
[1740723071432,130.76292744,127.94,127.9,4.11]
[1740723071631,130.76292744,127.94,127.93,7.8252]
[1740723072432,0.05486251,127.95,127.92,0.05658594]
[1740723072635,0.05486251,127.95,127.87,7.8484]
[1740723073030,117.6274738,127.96,127.87,7.8484]
[1740723073236,117.6274738,127.96,127.87,23.04891496]
[1740723073632,117.6274738,127.96,127.93,7.8246]
[1740723074036,117.6274738,127.96,127.89,7.8275]
[1740723074237,117.67834879,127.96,127.93,0.0590597]
[1740723074530,117.67834879,127.96,127.87,7.8484]
[1740723074531,117.6274738,127.96,127.9,7.8268]
[1740723074741,117.68028791,127.96,127.93,0.05607865]
[1740723083241,79.48438791,127.96,127.93,0.05607865]
[1740723083537,85.46935963,128.08,127.93,3.95607865]
[1740723083839,85.46935963,128.08,127.94,7.9396]
[1740723084039,85.46935963,128.08,127.95,3.9098]
[1740723084635,0.0523693,128.03,128.0,0.05333156]
[1740723084936,7.8201,128.02,128.0,0.05333156]
[1740723085140,18.4123693,128.03,127.89,14.46]
[1740723085436,38.05,128.03,127.83,161.79927178]
[1740723085631,23.59,128.01,127.83,129.98473172]
[1740723085831,23.59,127.99,127.83,129.98473172]
[1740723086030,3.00105755,127.98,127.83,129.98473172]
[1740723086240,3.00117967,127.97,127.83,129.98473172]
[1740723086440,0.06005947,127.92,127.91,7.79738128]
[1740723086741,197.8264,127.91,127.9,177.00642667]
[1740723086934,222.85559167,127.91,127.9,20.63642667]
[1740723087139,31.417,127.9,127.89,244.65540841]
[1740723087436,31.417,127.9,127.89,77.91850841]
[1740723087640,23.59,127.88,127.84,20.88736642]
[1740723087942,38.05,127.87,127.84,20.88736642]
[1740723088136,7.8301,127.85,127.84,7.42936642]
[1740723088636,14.46,127.87,127.84,7.42936642]
[1740723088842,0.05867995,127.86,127.84,7.42936642]
[1740723089138,0.05867995,127.86,127.83,9.681e-05]
[1740723089339,159.59,127.85,127.83,9.681e-05]
[1740723089538,1.56445556,127.84,127.83,9.681e-05]
[1740723089936,32.98515556,127.84,127.83,9.681e-05]
[1740723090240,25.15445556,127.84,127.59,4.0311]
[1740723090442,25.15445556,127.84,127.63,265.12095279]
[1740723090942,7.8344,127.78,127.63,335.4443663]
[1740723091146,39.61531267,127.77,127.53,4.1439]
[1740723091445,1.56543519,127.76,127.58,265.12095279]
[1740723091638,1.56543519,127.76,127.64,0.05732233]
[1740723091639,0.05966299,127.66,127.64,0.05732233]
[1740723091840,14.46,127.65,127.64,0.05732233]
[1740723092145,14.46,127.65,127.63,0.05338317]
[1740723092336,14.46,127.65,127.63,0.01318317]
[1740723092543,14.46,127.65,127.5,212.78]
[1740723092842,14.46,127.65,127.57,265.12095279]
[1740723093043,14.46,127.65,127.56,265.12095279]
[1740723093444,14.46,127.65,127.56,335.4443663]
[1740723093642,85.52431096,127.62,127.59,0.05889478]
[1740723094036,85.46935963,127.62,127.45,7.8546]
[1740723094240,85.51940317,127.62,127.59,0.05952604]
[1740723094644,85.46935963,127.62,127.46,7.854]
[1740723094942,265.10568174,127.6,127.59,0.05667935]
[1740723095143,265.10568174,127.6,127.49,321.58289337]
[1740723095339,265.10568174,127.6,127.43,3.8693]
[1740723095544,265.10568174,127.6,127.48,251.25947986]
[1740723095741,265.10568174,127.6,127.43,3.8693]
[1740723095943,265.10568174,127.6,127.45,218.20095279]
[1740723096246,1.56752096,127.59,127.45,48.60199626]
[1740723096447,0.06015962,127.54,127.51,0.05043144]
[1740723096852,84.56364312,127.5,127.4,14.48]
[1740723097239,84.56364312,127.5,127.49,141.66647569]
[1740723097439,69.02017393,127.5,127.49,149.51867569]
[1740723098049,0.05939812,127.51,127.5,7.8516]
[1740723098244,9.812e-05,127.51,127.5,149.51807569]
[1740723098446,38.20911461,127.53,127.5,141.66647569]
[1740723098747,69.02017393,127.54,127.48,0.05609572]
[1740723098748,69.02017393,127.54,127.52,141.66647569]
[1740723098949,4.21558854,127.54,127.53,141.66647569]
[1740723099138,184.1591366,127.57,127.53,141.66647569]
[1740723099343,121.6076366,127.57,127.56,149.51437569]
[1740723099541,120.49806871,127.59,127.56,213.16]
[1740723099740,0.05933227,127.58,127.57,7.8472]
[1740723100146,0.05933227,127.58,127.57,11.7672]
[1740723100342,0.05933227,127.58,127.56,213.21117515]
[1740723100555,0.05933227,127.58,127.56,217.13117515]
[1740723100751,0.05933227,127.58,127.57,7.8472]
[1740723100953,0.05933227,127.58,127.56,213.21117515]
[1740723101454,3.227e-05,127.58,127.57,7.8472]
[1740723101952,3.227e-05,127.58,127.56,213.21117515]
[1740723102747,3.227e-05,127.58,127.56,0.05117515]
[1740723103952,3.227e-05,127.58,127.48,213.14]
[1740723104355,14.5,127.61,127.36,83.75732459]
[1740723104560,22.6815,127.6,127.43,227.68]
[1740723104748,14.5,127.59,127.43,227.68]
[1740723105143,0.05665083,127.52,127.5,0.05405708]
[1740723105555,3.92,127.52,127.33,227.68]
[1740723105750,8.1815,127.51,127.33,227.68]
[1740723106451,8.1815,127.51,127.35,7.8608]
[1740723106652,0.05094805,127.43,127.41,0.05159095]
[1740723107048,8.1815,127.51,127.33,227.68]
[1740723107249,0.0555769,127.43,127.41,0.05884695]
[1740723107650,8.1815,127.51,127.33,227.68]
[1740723107851,0.0582971,127.43,127.41,0.0593738]
[1740723108255,8.1815,127.51,127.35,7.8603]
[1740723108458,0.05997597,127.43,127.41,0.05645654]
[1740723108751,8.1815,127.51,127.33,227.68]
[1740723108955,0.04987444,127.43,127.41,0.05449962]
[1740723109152,0.04987444,127.43,127.36,7.8602]
[1740723109356,8.1815,127.51,127.33,227.68]
[1740723109656,0.04996959,127.43,127.33,227.68]
[1740723109852,0.04996959,127.43,127.41,0.0523107]
[1740723110051,8.1815,127.51,127.41,0.0523107]
[1740723110247,0.05590321,127.43,127.34,7.8609]
[1740723110453,7.8527,127.49,127.34,7.8609]
[1740723110659,0.05997411,127.4,127.37,0.05821958]
[1740723110950,11.7452,127.48,127.33,221.042]
[1740723110951,3.8919,127.48,127.33,221.042]
[1740723111255,0.05046137,127.4,127.37,0.05650602]
[1740723111554,3.8919,127.48,127.33,213.18]
[1740723111951,0.05170736,127.4,127.37,0.05548388]
[1740723112257,14.5,127.43,127.33,213.18]
[1740723112654,0.05935482,127.4,127.37,0.05016953]
[1740723112953,190.0,127.39,127.29,83.75732459]
[1740723113151,3.8919,127.38,127.29,83.75732459]
[1740723113454,3.8919,127.38,127.29,58.72572459]
[1740723113856,7.8639,127.3,127.29,58.72572459]
[1740723114057,14.5,127.3,127.28,152.74673227]
[1740723114259,18.42,127.3,127.28,152.79638279]
[1740723114453,190.0,127.37,127.28,140.75688279]
[1740723114654,213.44,127.39,127.28,140.75688279]
[1740723114655,0.0506053,127.3,127.28,140.75688279]
[1740723114849,14.5,127.39,127.28,15.07124538]
[1740723115057,0.05546555,127.3,127.28,15.1259619]
[1740723115260,0.05546555,127.3,127.28,15.07124538]
[1740723115460,190.0,127.38,127.28,15.07124538]
[1740723115652,0.05220874,127.3,127.28,15.12140591]
[1740723115859,14.5,127.39,127.28,15.07124538]
[1740723116153,7.8644,127.3,127.28,15.13005965]
[1740723116357,14.5,127.31,127.28,15.13005965]
[1740723116657,14.5,127.31,127.28,15.07124538]
[1740723116854,7.8639,127.3,127.28,15.13117736]
[1740723117162,18.47294924,127.31,127.28,2.49937736]
[1740723117357,7.8645,127.29,127.28,2.49937736]
[1740723117758,0.05294924,127.31,127.2,4.1337]
[1740723118159,14.52,127.37,127.2,4.1337]
[1740723118755,14.52,127.37,127.21,213.62]
[1740723119064,0.05197618,127.3,127.27,0.05677768]
[1740723119364,22.3771,127.42,127.3,7.8638]
[1740723119564,14.52,127.42,127.31,7.9621]
[1740723119966,22.3766,127.42,127.31,7.9621]
[1740723120366,14.52,127.42,127.31,4.0674]
[1740723120563,7.91925929,127.38,127.35,0.05593129]
[1740723120756,0.06025929,127.38,127.35,0.05593129]
[1740723121163,7.91985929,127.38,127.35,0.05593129]
[1740723121365,3.98025929,127.38,127.35,0.05593129]
[1740723121658,3.98025929,127.38,127.35,0.00513129]
[1740723122065,7.8602,127.36,127.35,0.00513129]
[1740723122468,11.7802,127.36,127.35,0.00513129]
[1740723123168,3.92,127.36,127.22,7.8461]
[1740723123367,0.06025929,127.38,127.22,7.8461]
[1740723123561,213.66,127.41,127.22,7.8461]
[1740723123766,7.86,127.37,127.22,7.8461]
[1740723123965,213.66,127.41,127.22,7.8461]